bitfinex-derivatives/quotes_ETHF0:USTF0_20250507
["timestamp","ask_amount","ask_price","bid_price","bid_amount"]
[1746638539699,1.10627,1807.6,1807.5,10.7889]
[1746638539896,1.10627,1807.6,1807.5,12.62354161]
[1746638540400,1.10627,1807.6,1807.5,11.51721161]
[1746638541395,2.75857,1807.6,1807.5,12.23272343]
[1746638541596,2.75857,1807.6,1807.5,12.23419535]
[1746638544097,3.2078,1807.8,1807.5,7.92819535]
[1746638544306,1.10623,1807.7,1807.6,3.47808353]
[1746638544793,1.10623,1807.7,1807.6,4.19314861]
[1746638545098,1.10623,1807.7,1807.6,0.71531579]
[1746638545292,1.10627,1807.6,1807.5,9.0799]
[1746638545493,6.05747,1807.6,1807.5,9.80943555]
[1746638545891,6.05747,1807.6,1807.5,10.52487697]
[1746638546597,6.05747,1807.6,1807.5,10.52499375]
[1746638546897,1.10627,1807.6,1807.5,11.63132375]
[1746638547095,1.7434,1807.8,1807.5,13.25632375]
[1746638547297,1.10621,1807.7,1807.6,3.46215233]
[1746638548199,1.10627,1807.6,1807.5,3.6]
[1746638548499,2.76067,1807.6,1807.5,5.04473745]
[1746638548999,2.76067,1807.6,1807.5,4.32951726]
[1746638549402,2.76067,1807.6,1807.5,3.6]
[1746638551298,1.10633,1807.5,1807.4,1.6408]
[1746638551499,2.86633,1807.5,1807.4,1.6408]
[1746638552201,2.86633,1807.5,1807.4,5.2408]
[1746638553601,6.07413,1807.5,1807.4,3.6]
[1746638554701,9.1718,1807.7,1807.5,1.10631]
[1746638554898,10.27803,1807.7,1807.6,3.66943302]
[1746638555095,10.27803,1807.7,1807.6,4.87793302]
[1746638555601,10.27803,1807.7,1807.6,5.591954]
[1746638555802,4.31403,1807.7,1807.6,4.87793302]
[1746638556003,4.31403,1807.7,1807.6,4.87759004]
[1746638556300,4.31403,1807.7,1807.6,4.1501]
[1746638556701,4.31403,1807.7,1807.6,4.87768876]
[1746638557506,4.31403,1807.7,1807.6,4.1501]
[1746638558205,4.31403,1807.7,1807.6,4.87830047]
[1746638559206,1.10618,1807.8,1807.6,9.87830047]
[1746638559505,1.10615,1807.8,1807.7,3.12956702]
[1746638559705,1.10615,1807.8,1807.7,3.12929191]
[1746638560106,1.10615,1807.8,1807.7,6.72929191]
[1746638561112,1.10615,1807.8,1807.7,7.83550191]
[1746638561609,1.10615,1807.8,1807.7,7.83532215]
[1746638562707,1.10615,1807.8,1807.7,7.10757655]
[1746638562909,1.10615,1807.8,1807.7,6.39321]
[1746638563809,1.10615,1807.8,1807.7,7.83457418]
[1746638564307,1.10615,1807.8,1807.7,7.12077652]
[1746638564507,1.10615,1807.8,1807.7,6.01456652]
[1746638564806,1.10615,1807.8,1807.7,5.287]
[1746638565709,1.10615,1807.8,1807.7,6.39321]
[1746638565909,1.10615,1807.8,1807.7,7.12066742]
[1746638566108,1.10615,1807.8,1807.7,5.287]
[1746638566805,1.10615,1807.8,1807.7,6.39321]
[1746638567108,1.10615,1807.8,1807.7,7.12038867]
[1746638567509,1.10615,1807.8,1807.7,7.12028642]
[1746638568010,1.10615,1807.8,1807.7,7.12028287]
[1746638568308,1.10615,1807.8,1807.7,6.39321]
[1746638568816,4.31386,1808.0,1807.7,8.05252]
[1746638569123,2.78691,1808.1,1808.0,1.10602]
[1746638569910,1.10602,1808.0,1807.9,5.11674]
[1746638570110,1.10602,1808.0,1807.9,3.36004]
[1746638570406,1.10602,1808.0,1807.9,6.96004]
[1746638570808,1.10591,1808.2,1808.1,1.10591]
[1746638571208,1.10591,1808.2,1808.1,5.41691]
[1746638571615,1.10591,1808.2,1808.1,4.311]
[1746638572024,1.10591,1808.2,1808.1,5.41696]
[1746638573018,3.2078,1808.4,1808.3,1.10584]
[1746638573222,1.10574,1808.5,1808.4,1.10576]
[1746638573425,1.10574,1808.5,1808.2,2.2667]
[1746638573721,2.86474,1808.5,1808.4,1.10578]
[1746638574326,2.86472,1808.5,1808.4,3.6]
[1746638574823,3.94602,1808.5,1808.4,3.6]
[1746638575026,3.2078,1808.6,1808.4,3.6]
[1746638575322,1.10572,1808.5,1808.4,4.70575]
[1746638577120,5.9222,1808.6,1808.5,1.10572]
[1746638577321,5.9222,1808.6,1808.4,9.01673]
[1746638577521,5.9222,1808.6,1808.4,7.911]
[1746638577722,1.10572,1808.5,1808.4,9.01674]
[1746638578025,1.10572,1808.5,1808.4,7.911]
[1746638578428,1.10572,1808.5,1808.4,9.01678]
[1746638581030,1.10572,1808.5,1808.4,7.911]
[1746638581521,2.71022,1808.5,1808.4,7.911]
[1746638581721,1.10572,1808.5,1808.4,9.01678]
[1746638582227,3.2078,1808.6,1808.5,1.10572]
[1746638582529,1.10568,1808.6,1808.5,1.10569]
[1746638582931,3.2078,1808.8,1808.4,7.911]
[1746638583129,1.6045,1808.9,1808.5,5.52848]
[1746638583331,2.71001,1808.9,1808.8,1.10553]
[1746638583535,1.10553,1808.8,1808.7,5.41555]
[1746638583830,1.10553,1808.8,1808.7,7.01955]
[1746638584234,2.71002,1808.9,1808.8,1.10553]
[1746638584425,2.71002,1808.9,1808.8,2.82543]
[1746638584624,2.71002,1808.9,1808.8,1.7199]
[1746638585024,1.10552,1808.9,1808.8,2.82543]
[1746638585221,1.10552,1808.9,1808.8,5.3199]
[1746638585427,1.10552,1808.9,1808.8,3.6]
[1746638585932,5.04572,1808.9,1808.8,3.6]
[1746638586635,10.04572,1808.9,1808.8,3.6]
[1746638587225,10.14736105,1808.9,1808.8,3.6]
[1746638587525,10.04572,1808.9,1808.8,3.6]
[1746638587828,10.14735905,1808.9,1808.8,3.6]
[1746638588331,1.10566,1808.6,1808.5,4.344]
[1746638589229,1.10566,1808.6,1808.5,9.7203]
[1746638596730,2.15906,1808.6,1808.5,7.944]
[1746638597532,1.10566,1808.6,1808.5,7.944]
[1746638597737,1.10566,1808.6,1808.5,9.5626]
[1746638600641,5.97016,1808.6,1808.5,7.944]
[1746638600840,3.86716,1808.6,1808.5,7.944]
[1746638602433,2.76236,1808.6,1808.5,7.944]
[1746638602934,1.10566,1808.6,1808.5,8.67027764]
[1746638604439,1.10566,1808.6,1808.5,8.67068892]
[1746638604847,1.10566,1808.6,1808.5,10.40498892]
[1746638606344,1.10566,1808.6,1808.5,9.6783]
[1746638606738,2.76176,1808.6,1808.5,10.40394982]
[1746638610247,2.76176,1808.6,1808.5,10.4046184]
[1746638612049,2.76176,1808.6,1808.5,10.40528363]
[1746638612449,2.76176,1808.6,1808.5,9.6783]
[1746638612649,2.76176,1808.6,1808.5,10.40534083]
[1746638612948,11.93356,1808.6,1808.5,3.6]
[1746638613149,19.09126,1808.6,1808.5,3.6]
[1746638613452,19.19291572,1808.6,1808.5,3.6]
[1746638613749,19.19291554,1808.6,1808.5,3.6]
[1746638614151,1.1059,1808.2,1808.1,9.174]
[1746638614346,1.1059,1808.2,1808.1,10.09737505]
[1746638614546,1.1059,1808.2,1808.1,10.09739217]
[1746638614945,1.1059,1808.2,1808.1,10.09733333]
[1746638615850,1.1059,1808.2,1808.1,10.09547231]
[1746638616350,1.1059,1808.2,1808.1,8.98951231]
[1746638616649,1.1059,1808.2,1808.1,5.78171231]
[1746638618352,1.1059,1808.2,1808.1,5.06930138]
[1746638618943,2.753,1808.2,1808.1,5.06930138]
[1746638619352,2.753,1808.2,1808.1,4.344]
[1746638620252,2.753,1808.2,1808.1,5.06750662]
[1746638620551,2.753,1808.2,1808.1,5.77878703]
[1746638622049,2.753,1808.2,1808.1,5.06750662]
[1746638622555,2.753,1808.2,1808.1,4.344]
[1746638622856,2.753,1808.2,1808.1,5.06682744]
[1746638623052,3.8784,1808.2,1808.1,4.344]
[1746638625274,2.753,1808.2,1808.1,4.344]
[1746638626457,1.10587,1808.3,1808.2,1.10588]
[1746638626657,3.2078,1808.6,1808.3,1.10584]
[1746638626861,1.10577,1808.5,1808.4,2.23577]
[1746638627061,1.10577,1808.5,1808.4,6.54577]
[1746638627260,1.10577,1808.5,1808.4,7.26911473]
[1746638627460,4.31351,1808.6,1808.5,1.10572]
[1746638627762,1.10571,1808.6,1808.5,1.82898703]
[1746638628063,1.10571,1808.6,1808.5,0.72326703]
[1746638628361,1.10571,1808.6,1808.5,4.32326703]
[1746638628762,1.10571,1808.6,1808.5,3.6]
[1746638628956,1.10571,1808.6,1808.5,4.32389922]
[1746638629156,1.10571,1808.6,1808.5,4.32390714]
[1746638629464,1.10571,1808.6,1808.5,5.42962714]
[1746638630366,1.10571,1808.6,1808.5,4.32390714]
[1746638631163,1.10571,1808.6,1808.5,4.32386516]
[1746638632267,1.10571,1808.6,1808.5,3.6]
[1746638633772,1.10571,1808.6,1808.5,4.70572]
[1746638633964,1.10571,1808.6,1808.5,6.45222]
[1746638634371,1.10565,1808.7,1808.6,1.10562]
[1746638634571,1.10565,1808.7,1808.6,3.94412]
[1746638634975,1.10565,1808.7,1808.6,4.66705393]
[1746638635270,1.10565,1808.7,1808.6,4.66703459]
[1746638636374,1.10565,1808.7,1808.6,3.94412]
[1746638640076,11.9352,1809.1,1808.6,11.32527778]
[1746638640275,1.10544,1809.0,1808.9,1.10544]
[1746638640475,6.01729,1809.1,1809.0,1.10541]
[1746638640771,1.10539,1809.1,1809.0,1.10541]
[1746638641177,1.10539,1809.1,1809.0,4.70541]
[1746638641369,1.10539,1809.1,1809.0,6.39291]
[1746638642180,1.10539,1809.1,1809.0,5.2875]
[1746638643479,1.10539,1809.1,1809.0,6.39291]
[1746638644178,1.10539,1809.1,1809.0,5.2875]
[1746638645377,1.10539,1809.1,1809.0,9.5755]
[1746638650080,2.84099,1809.1,1809.0,9.5755]
[1746638653480,1.10539,1809.1,1809.0,9.5755]
[1746638654881,2.79209,1809.1,1809.0,7.888]
[1746638656986,2.79209,1809.1,1809.0,9.5386]
[1746638657488,2.79209,1809.1,1809.0,10.5609]
[1746638657685,2.79209,1809.1,1809.0,11.66631]
[1746638657983,2.2347,1809.4,1809.0,10.5609]
[1746638658185,1.6959,1809.3,1809.2,3.2078]
[1746638658382,2.80113,1809.3,1809.2,4.8584]
[1746638658679,1.10523,1809.3,1809.2,3.88079]
[1746638658884,4.89333,1809.6,1809.2,9.47098472]
[1746638659081,1.10518,1809.4,1809.3,8.78954472]
[1746638659282,1.10515,1809.5,1809.4,1.10514]
[1746638659487,1.10515,1809.5,1809.4,3.48021472]
[1746638660192,1.10515,1809.5,1809.4,5.2506]
[1746638660582,2.77545,1809.5,1809.4,5.2506]
[1746638663482,2.77545,1809.5,1809.4,3.6]
[1746638663483,16.94725,1809.5,1809.4,3.6]
[1746638664286,1.10529,1809.2,1809.1,4.287]
[1746638664486,1.10529,1809.2,1809.1,5.9224]
[1746638664686,1.10529,1809.2,1809.1,4.287]
[1746638665194,2.82329,1809.2,1809.1,4.287]
[1746638667294,2.82329,1809.2,1809.1,5.39235]
[1746638667495,2.82329,1809.2,1809.1,7.11125]
[1746638668397,2.82329,1809.2,1809.1,7.83591942]
[1746638669784,2.82329,1809.2,1809.1,6.73056942]
[1746638671799,2.82329,1809.2,1809.1,6.73141225]
[1746638674705,2.82329,1809.2,1809.1,6.0059]
[1746638676908,2.82329,1809.2,1809.1,4.287]
[1746638677309,2.82329,1809.2,1809.1,5.9246]
[1746638678308,2.82329,1809.2,1809.1,7.02995]
[1746638678507,2.82329,1809.2,1809.1,7.75613724]
[1746638679109,2.82329,1809.2,1809.1,6.65078724]
[1746638679307,2.82329,1809.2,1809.1,6.65109839]
[1746638679609,2.82329,1809.2,1809.1,7.75644839]
[1746638680008,1.10529,1809.2,1809.1,7.75644839]
[1746638680309,1.10529,1809.2,1809.1,8.4698162]
[1746638680609,1.10526,1809.3,1809.2,1.10524]
[1746638680806,1.10526,1809.3,1809.2,2.84834]
[1746638681201,1.10526,1809.3,1809.2,6.44834]
[1746638682804,10.8391,1809.5,1809.2,5.3431]
[1746638683010,7.06916,1809.5,1809.4,1.10517]
[1746638683208,7.06916,1809.5,1809.4,1.83169525]
[1746638683405,7.06916,1809.5,1809.4,7.87129525]
[1746638683905,7.06916,1809.5,1809.4,8.5843547]
[1746638684211,1.10516,1809.5,1809.4,11.47129525]
[1746638686712,1.10516,1809.5,1809.4,11.47167966]
[1746638687613,1.10516,1809.5,1809.4,12.18454952]
[1746638688214,1.10516,1809.5,1809.4,12.18495028]
[1746638690414,1.10516,1809.5,1809.4,12.18509076]
[1746638691411,1.10516,1809.5,1809.4,11.47182014]
[1746638692220,1.10516,1809.5,1809.4,11.4718366]
[1746638692513,1.10516,1809.5,1809.4,10.74477]
[1746638693417,1.10516,1809.5,1809.4,11.47173071]
[1746638694121,1.10516,1809.5,1809.4,11.47159919]
[1746638697727,1.10516,1809.5,1809.4,11.47191253]
[1746638698424,1.10516,1809.5,1809.4,10.36674253]
[1746638698625,1.10516,1809.5,1809.4,11.47191253]
[1746638700829,1.10516,1809.5,1809.4,10.36674253]
[1746638701129,1.10516,1809.5,1809.4,10.3669018]
[1746638702633,2.88526,1809.5,1809.4,11.4720718]
[1746638702932,1.10516,1809.5,1809.4,11.47194242]
[1746638703338,1.10516,1809.5,1809.4,12.18446413]
[1746638704226,1.10516,1809.5,1809.4,12.18463089]
[1746638704425,1.10516,1809.5,1809.4,12.18478537]
[1746638706328,1.10509,1809.6,1809.5,1.10506]
[1746638706528,1.10509,1809.6,1809.5,1.83210873]
[1746638707133,1.10509,1809.6,1809.5,5.43210873]
[1746638708129,4.31282,1809.7,1809.6,1.10505]
[1746638708333,1.10497,1809.8,1809.7,1.10498]
[1746638708637,1.10489,1809.9,1809.7,5.01059857]
[1746638708928,1.10489,1809.9,1809.8,0.72759857]
[1746638709133,1.10492,1809.8,1809.7,5.38797]
[1746638709337,1.10492,1809.8,1809.7,6.11527434]
[1746638709632,3.81351,1809.9,1809.7,6.82810899]
[1746638709831,1.6249,1809.8,1809.7,6.10080465]
[1746638710031,1.6249,1809.8,1809.7,6.82904941]
[1746638710234,2.72982,1809.8,1809.7,10.42896657]
[1746638710824,2.72982,1809.8,1809.7,10.42890486]
[1746638711024,2.72982,1809.8,1809.7,9.70080465]
[1746638711535,2.72982,1809.8,1809.7,10.42904688]
[1746638711736,1.6249,1809.8,1809.7,10.4290824]
[1746638712639,1.6249,1809.8,1809.7,10.42906433]
[1746638712939,2.72982,1809.8,1809.7,10.42906919]
[1746638713236,2.72982,1809.8,1809.7,10.42906926]
[1746638713440,2.72982,1809.8,1809.7,9.70080465]
[1746638713638,2.72982,1809.8,1809.7,9.32419691]
[1746638713939,2.72982,1809.8,1809.7,8.61136226]
[1746638714534,10.93762,1809.8,1809.7,3.6]
[1746638715039,1.10535,1809.1,1809.0,5.3024]
[1746638715339,1.10535,1809.1,1809.0,5.72503325]
[1746638715843,2.87805,1809.1,1809.0,5.0117405]
[1746638716340,2.87805,1809.1,1809.0,9.7170788]
[1746638716736,2.87805,1809.1,1809.0,8.98841]
[1746638718141,2.87805,1809.1,1809.0,7.883]
[1746638719139,1.10528,1809.3,1809.1,1.10535]
[1746638719444,2.77438,1809.3,1809.1,1.017]
[1746638719634,2.77438,1809.3,1809.2,1.0016]
[1746638720137,2.77438,1809.3,1809.2,4.6016]
[1746638723737,1.6691,1809.3,1809.2,5.70689]
[1746638723939,2.77433,1809.3,1809.2,7.40839]
[1746638724238,1.6691,1809.3,1809.2,7.40839]
[1746638724444,4.31302,1809.4,1809.2,7.40839]
[1746638724741,2.081,1809.5,1809.4,1.10515]
[1746638724742,1.10513,1809.5,1809.4,1.10515]
[1746638724947,1.10517,1809.4,1809.3,2.83729]
[1746638725143,1.10517,1809.4,1809.3,3.56089406]
[1746638725348,1.10517,1809.4,1809.3,7.84489406]
[1746638726148,1.10517,1809.4,1809.3,11.44489406]
[1746638726650,1.10517,1809.4,1809.3,10.72129]
[1746638726948,1.10517,1809.4,1809.3,11.44563068]
[1746638727348,1.10517,1809.4,1809.3,10.72129]
[1746638727547,1.10517,1809.4,1809.3,11.44560797]
[1746638727748,2.79266,1809.5,1809.4,1.10517]
[1746638728047,2.79266,1809.5,1809.4,3.84787]
[1746638728238,2.79266,1809.5,1809.4,6.3427]
[1746638729942,2.79266,1809.5,1809.4,7.44787]
[1746638730145,1.10516,1809.5,1809.4,7.44787]
[1746638732151,2.7307,1809.6,1809.5,1.10511]
[1746638732350,2.7307,1809.6,1809.5,1.6091]
[1746638732852,3.2078,1809.8,1809.5,2.71421]
[1746638733053,1.10501,1809.7,1809.6,2.11591]
[1746638733253,1.10501,1809.7,1809.6,3.79351]
[1746638733554,1.6256,1809.9,1809.6,13.66676693]
[1746638733752,1.10495,1809.8,1809.7,3.82656]
[1746638734360,2.73048,1809.9,1809.8,1.10492]
[1746638734654,1.10488,1809.9,1809.8,2.78252]
[1746638735048,6.05245,1810.0,1809.9,1.10486]
[1746638735246,1.10479,1810.1,1810.0,1.10479]
[1746638735452,1.10479,1810.1,1810.0,2.14879]
[1746638735752,1.10479,1810.1,1810.0,1.044]
[1746638735949,2.84459,1810.1,1810.0,1.044]
[1746638736154,2.84459,1810.1,1810.0,6.3216]
[1746638737950,2.84459,1810.1,1810.0,7.4264]
[1746638738254,1.10479,1810.1,1810.0,6.3216]
[1746638738753,2.87769,1810.1,1810.0,6.3216]
[1746638739553,1.10479,1810.1,1810.0,6.3216]
[1746638740555,1.10479,1810.1,1810.0,7.4264]
[1746638741056,1.10479,1810.1,1810.0,6.3216]
[1746638741656,1.10479,1810.1,1810.0,7.4264]
[1746638741852,4.31252,1810.2,1810.1,1.10474]
[1746638742050,4.31252,1810.2,1810.1,2.74564]
[1746638742654,4.31252,1810.2,1810.1,1.6409]
[1746638744862,1.10472,1810.2,1810.1,2.74564]
[1746638745058,1.10472,1810.2,1810.1,1.6409]
[1746638746061,2.84912,1810.2,1810.1,1.6409]
[1746638747859,2.84912,1810.2,1810.1,2.6214]
[1746638750270,1.10474,1810.1,1810.0,3.6]
[1746638750463,6.07064,1810.1,1810.0,3.6]
[1746638750662,1.10498,1809.7,1809.6,4.281]
[1746638750855,1.1051,1809.6,1809.4,3.7286]
[1746638751167,1.7581,1809.5,1809.4,8.43373]
[1746638751358,1.7581,1809.5,1809.4,6.81143]
[1746638751665,2.86321,1809.5,1809.4,5.7063]
[1746638752266,1.10511,1809.5,1809.4,6.81147]
[1746638753066,1.10494,1809.8,1809.5,5.52554]
[1746638753259,1.10494,1809.8,1809.7,1.10494]
[1746638753767,1.10494,1809.8,1809.7,2.10014]
[1746638754266,1.10494,1809.8,1809.7,4.5952]
[1746638755069,1.10494,1809.8,1809.7,5.70018]
[1746638755263,1.10494,1809.8,1809.7,4.5952]
[1746638756465,2.78234,1809.8,1809.7,4.5952]
[1746638756869,2.78234,1809.8,1809.7,3.6]
[1746638757261,3.79954,1809.8,1809.7,3.6]
[1746638757760,7.00734,1809.8,1809.7,3.6]
[1746638767077,12.00734,1809.8,1809.7,0.66851]
[1746638767272,1.10523,1809.3,1809.2,6.92]
[1746638768186,1.10523,1809.3,1809.2,10.52]
[1746638768584,1.10523,1809.3,1809.2,8.8575]
[1746638768984,9.31303,1809.3,1809.2,2.37198]
[1746638769187,10.31193,1809.3,1809.2,1.2463]
[1746638769390,1.10553,1808.8,1808.7,3.6423]
[1746638770089,1.10553,1808.8,1808.7,7.2423]
[1746638775585,4.31333,1808.8,1808.7,3.6]
[1746638776190,4.31333,1808.8,1808.3,3.7963]
[1746638776191,1.10578,1808.4,1808.3,3.7963]
[1746638776884,1.10584,1808.3,1808.2,16.66275566]
[1746638777192,2.74174,1808.3,1808.2,20.26275566]
[1746638777391,2.74174,1808.3,1808.2,21.93975566]
[1746638779993,1.10584,1808.3,1808.2,21.93975566]
[1746638787699,2.74854,1808.3,1808.2,21.93975566]
[1746638788688,2.74854,1808.3,1808.2,20.26275566]
[1746638789384,2.74854,1808.3,1808.2,22.04225566]
[1746638804599,1.10584,1808.3,1808.2,22.04225566]
[1746638804800,1.10584,1808.3,1808.2,22.76729053]
[1746638805907,1.10584,1808.3,1808.2,23.48360824]
[1746638806205,1.10584,1808.3,1808.2,23.48464858]
[1746638809805,1.10584,1808.3,1808.2,23.48553624]
[1746638811611,1.10584,1808.3,1808.2,23.4853994]
[1746638813003,1.10584,1808.3,1808.2,23.48537447]
[1746638813606,1.10584,1808.3,1808.2,23.48537234]
[1746638815508,1.10584,1808.3,1808.2,23.48531599]
[1746638818812,1.10584,1808.3,1808.2,6.82256033]
[1746638820816,1.10584,1808.3,1808.2,6.09571463]
[1746638821113,1.10584,1808.3,1808.2,6.82249806]
[1746638822310,5.964,1808.5,1808.2,11.82249806]
[1746638822509,7.06973,1808.5,1808.4,1.10578]
[1746638822705,1.10573,1808.5,1808.4,0.72745746]
[1746638822910,1.10573,1808.5,1808.4,3.36835746]
[1746638823109,1.10573,1808.5,1808.4,7.68457209]
[1746638823815,1.10573,1808.5,1808.4,8.79035209]
[1746638824315,1.10573,1808.5,1808.4,8.79013194]
[1746638825715,1.10573,1808.5,1808.4,7.68435194]
[1746638826115,1.10573,1808.5,1808.4,8.79013194]
[1746638827018,1.10573,1808.5,1808.4,7.68435194]
[1746638827815,1.10573,1808.5,1808.4,8.79013194]
[1746638829819,1.10566,1808.6,1808.5,1.10568]
[1746638830118,1.10566,1808.6,1808.5,7.20307745]
[1746638830615,1.10566,1808.6,1808.5,7.20309379]
[1746638831010,1.10566,1808.6,1808.5,5.3698]
[1746638831419,1.10566,1808.6,1808.5,6.47552]
[1746638832522,1.10566,1808.6,1808.5,5.3698]
[1746638833019,1.10566,1808.6,1808.5,6.47552]
[1746638834023,1.10566,1808.6,1808.5,7.20346896]
[1746638835124,1.10566,1808.6,1808.5,6.47552]
[1746638837025,1.10566,1808.6,1808.5,5.3698]
[1746638838127,1.10566,1808.6,1808.5,6.47552]
[1746638842636,1.10566,1808.6,1808.5,7.20341923]
[1746638842931,1.10566,1808.6,1808.5,6.09770556]
[1746638843133,1.10566,1808.6,1808.5,5.3698]
[1746638843432,2.80276,1808.6,1808.5,5.3698]
[1746638844235,2.80276,1808.6,1808.5,6.47552]
[1746638844433,1.10566,1808.6,1808.5,7.20345609]
[1746638845034,1.10566,1808.6,1808.5,6.09772799]
[1746638845236,4.31346,1808.6,1808.5,3.6]
[1746638845441,6.01056,1808.6,1808.5,3.6]
[1746638845729,11.01056,1808.6,1808.5,3.6]
[1746638846236,1.10578,1808.4,1808.3,2.8046]
[1746638846634,1.10578,1808.4,1808.3,1.0301]
[1746638847034,1.92498,1808.4,1808.3,1.0301]
[1746638847332,1.92498,1808.4,1808.3,4.6301]
[1746638849833,1.10578,1808.4,1808.3,4.6301]
[1746638850232,2.72778,1808.4,1808.3,4.6301]
[1746638850636,2.72778,1808.4,1808.3,3.6]
[1746638850837,3.57668,1808.4,1808.3,3.6]
[1746638853442,6.78448,1808.4,1808.3,3.6]
[1746638861146,1.1059,1808.2,1808.1,2.5241]
[1746638862843,1.6382,1808.2,1808.1,2.5241]
[1746638866452,4.9307,1808.4,1808.1,2.5241]
[1746638866651,1.7249,1808.3,1808.2,1.7457]
[1746638867145,1.7249,1808.3,1808.2,5.3457]
[1746638871465,1.7249,1808.3,1808.2,3.6]
[1746638872571,7.6889,1808.3,1808.2,3.6]
[1746638873257,7.6889,1808.3,1808.1,0.8666]
[1746638873258,7.79057744,1808.3,1808.1,0.8666]
[1746638873455,4.9539,1808.2,1808.1,0.8666]
[1746638874066,10.9179,1808.2,1807.6,7.4838]
[1746638874368,3.2078,1808.0,1807.7,4.17664501]
[1746638874669,3.2078,1808.0,1807.8,1.7558]
[1746638875168,3.2078,1808.0,1807.8,5.3558]
[1746638875364,3.2078,1808.0,1807.9,2.48217619]
[1746638875564,3.2078,1808.0,1807.9,1.7558]
[1746638875763,3.2078,1808.0,1807.9,2.48205798]
[1746638876267,3.2078,1808.0,1807.9,6.08205798]
[1746638876568,3.2078,1808.0,1807.9,6.08187884]
[1746638876869,3.2078,1808.0,1807.9,6.08187705]
[1746638877070,3.2078,1808.0,1807.9,6.08201941]
[1746638877270,3.2078,1808.0,1807.9,6.08200814]
[1746638878269,3.2078,1808.0,1807.9,5.3558]
[1746638878667,3.2078,1808.0,1807.9,6.0820137]
[1746638879758,3.2078,1808.0,1807.9,5.3558]
[1746638880572,3.2078,1808.0,1807.9,6.08213124]
[1746638881672,3.2078,1808.0,1807.9,6.08222295]
[1746638883471,3.2078,1808.0,1807.9,6.08256148]
[1746638884874,3.2078,1808.0,1807.9,5.3558]
[1746638886969,3.2078,1808.0,1807.9,3.6]
[1746638887175,4.8721,1808.0,1807.9,3.6]
[1746638898982,10.8361,1808.0,1807.9,3.6]
[1746638899184,10.93779302,1808.0,1807.7,1.6946]
[1746638899379,3.2078,1807.8,1807.7,3.3862]
[1746638900185,3.2078,1807.8,1807.7,6.9862]
[1746638905488,1.6358,1807.9,1807.7,6.9862]
[1746638905687,3.2078,1807.8,1807.7,6.9862]
[1746638907189,3.2078,1807.8,1807.7,3.6]
[1746638916995,9.1718,1808.0,1807.7,4.32975838]
[1746638917194,9.1718,1808.0,1807.8,4.06615838]
[1746638917499,9.1718,1808.0,1807.9,2.35845838]
[1746638918094,9.1718,1808.0,1807.9,5.95845838]
[1746638919297,9.1718,1808.0,1807.9,6.67442762]
[1746638919598,9.1718,1808.0,1807.9,6.67442946]
[1746638920494,9.1718,1808.0,1807.9,5.95772188]
[1746638920994,9.1718,1808.0,1807.9,3.6]
[1746638921191,9.1718,1808.0,1807.8,1.7077]
[1746638921390,1.7024,1807.9,1807.8,1.7077]
[1746638922196,1.7024,1807.9,1807.8,5.3077]
[1746638923585,1.7024,1807.9,1807.8,4.4315]
[1746638926198,1.7024,1807.9,1807.8,3.6]
[1746638926594,1.80409487,1807.9,1807.8,3.6]
[1746638927202,1.80409487,1807.9,1807.6,2.5816]
[1746638927500,3.2078,1807.8,1807.6,2.5816]
[1746638927699,9.1718,1807.8,1807.6,2.5816]
[1746638930490,9.1718,1807.8,1807.5,4.4869]
[1746638930805,3.2078,1807.6,1807.5,3.6]
[1746638931003,3.30952248,1807.6,1807.5,3.6]
[1746638931302,4.97952248,1807.6,1807.2,2.645]
[1746638931502,3.2078,1807.3,1807.2,2.645]
[1746638932099,3.2078,1807.3,1807.2,4.4887]
[1746638932409,4.8773,1807.3,1807.2,4.4887]
[1746638932703,4.8773,1807.3,1807.2,3.6]
[1746638933095,4.97902944,1807.3,1807.2,3.6]
[1746638933296,10.94302944,1807.3,1807.0,3.3836]
[1746638933497,3.2078,1807.1,1807.0,3.3836]
[1746638934102,3.2078,1807.1,1807.0,6.9836]
[1746638938107,9.1718,1807.1,1807.0,6.9836]
[1746638938309,9.1718,1807.1,1807.0,4.4809]
[1746638938703,10.8176,1807.1,1807.0,4.4809]
[1746638948018,10.8176,1807.1,1807.0,3.6]
[1746638948219,12.4749,1807.1,1807.0,3.6]
[1746638950515,17.4749,1807.1,1806.4,3.2078]
[1746638950717,3.2078,1806.6,1806.5,3.4442]
[1746638951122,3.2078,1806.6,1806.5,7.0442]
[1746638960240,3.30958071,1806.6,1806.5,7.0442]
[1746638960439,3.2078,1806.6,1806.5,7.0442]
[1746638976846,1.715,1806.7,1806.5,7.0442]
[1746638977145,1.715,1806.7,1806.6,1.6789]
[1746638977342,4.9228,1806.7,1806.6,1.6789]
[1746638982150,3.2078,1806.7,1806.6,1.6789]
[1746638982353,3.2078,1806.7,1806.6,2.40949571]
[1746638982647,3.2078,1806.7,1806.6,2.40948587]
[1746638982950,3.2078,1806.7,1806.6,1.6789]
[1746638983139,4.9895,1806.7,1806.6,1.6789]
[1746638983646,3.2078,1806.7,1806.6,1.6789]
[1746638983847,3.2078,1806.7,1806.6,2.40952617]
[1746638984047,3.2078,1806.7,1806.6,1.6789]
[1746638984850,3.2078,1806.7,1806.6,2.40898973]
[1746638985052,3.2078,1806.7,1806.6,1.6789]
[1746638991254,4.9658,1806.7,1806.5,5.3222]
[1746638991656,4.9658,1806.7,1806.5,6.9939]
[1746638992657,4.9658,1806.7,1806.6,1.6717]
[1746638994452,3.2078,1806.7,1806.6,1.6717]
[1746638996459,3.2078,1806.7,1806.6,2.40235574]